Workbook

Sheet Serviceability
C3: Serviceability Calculator (Residential)
D4: RedZed Lending Solutions Pty Ltd (ACL 311128)
D6: Information can be entered in the clear boxes, the grey boxes contain RedZed calculations.
D8: Application name - mandatory
D10: Income Table | G10: Gross Annual | L10: Net Monthly
D12: Personal Income | F12: Select Household
D13: Applicant / Guarantor 1 | E13: PAYG/Self Employed - Alt Doc Declaration/Self Employed - Full Doc | L13: ='Tax Calc'!I5 -> 0
D14: Applicant / Guarantor 2 | E14: PAYG/Self Employed - Alt Doc Declaration/Self Employed - Full Doc | L14: ='Tax Calc'!I6 -> 0
D15: Applicant / Guarantor 3 | E15: PAYG/Self Employed - Alt Doc Declaration/Self Employed - Full Doc | L15: ='Tax Calc'!I7 -> 0
D16: Applicant / Guarantor 4 | E16: PAYG/Self Employed - Alt Doc Declaration/Self Employed - Full Doc | L16: ='Tax Calc'!I8 -> 0
F18: Select Household | G18: Enter Source of Income
D19: Applicant / Guarantor 1 | E19: Other Regular Monthly Income (eg - Centrelink payments, investments)
D20: Applicant / Guarantor 2 | E20: Other Regular Monthly Income (eg - Centrelink payments, investments)
D21: Applicant / Guarantor 3 | E21: Other Regular Monthly Income (eg - Centrelink payments, investments)
D22: Applicant / Guarantor 4 | E22: Other Regular Monthly Income (eg - Centrelink payments, investments)
D24: Rental Income | E24: Existing | L24: =G24*0.8/12 -> 0
D25: Rental Income | E25: New | L25: =G25*0.8/12 -> 0
D27: Company Income (only to be used if the company is the loan applicant)
D28: *If a guarantor's income is also required to help with serviceability,
D29: all company and guarantor debts, and living expenses need to be included
D30: Company Net Profit Before Tax - Full Doc or Alt Doc Self Certified | L30: =(G30-(G30*Table_Company_Tax_Rate))/12 -> 0
D31: =IF(G30 <> 0, "Only NPBT from the borrowing Company entity can be entered in this field. Other related company NPBT needs to be allocated to the director(s)/guarantor(s)", 0) -> 0
D32: Total Monthly Net Income | L32: =SUM(L13,L14,L15,L16,L19,L20,L21,L22,L24,L25,L30) -> 0
D35: Monthly Living Expenses
D37: Applicants(s) declared expenses - mandatory
D38: Ongoing (combined) standard monthly living expenses declared by applicant(s)
D40: RedZed Living Allowance | F40: Select Household
D41: Number of adults - household 1 | H41: =Tables!E82 -> 
D42: Number of dependant children - household 1
D43: Number of adults - household 2 | H43: =Tables!E83 -> 
D44: Number of dependant children - household 2
D46: Total Monthly Living Expenses used in assessment | L46: =MAX(SUM(L41:L44),G38) -> 0
D49: Available Income | L49: =Tables!B311 -> 0
D51: Commitments | L51: Monthly
D53: RedZed Loan Applied For
G54: Loan Amount | H54: Years | I54: Interest Only Term | J54: Interest Rate
E55: Loan 1 | L55: =Tables!B317 -> 0
E56: Loan 2 | L56: =Tables!B318 -> 0
D57: Note: An interest rate buffer is automatically applied by the calculator. You do not need to apply a separate buffer.
G58: Limit | I58: Financier
D59: Existing Loans | E59: Loan 1 - Existing Secured
E60: Loan 2 - Existing Secured
E61: Loan 3 - Existing Unsecured
E62: Loan 4 - Existing Unsecured
G64: Total Credit Limits
D65: Credit Cards | I65: (@3.82%) | L65: =G65*3.82% -> 0
D67: Maintenance / On Going Rent
D69: Other Fixed Monthly Repayments
D71: Total Monthly Commitments | L71: =SUM(L55:L69) -> 0
I73: Debt Servicing Ratio | L73: (DSR)
D74: This Serviceability Calculator is intended as a guide only and no loan approval can be assumed on the basis of the results of this calculator. All applications remain subject to the normal credit and approval criteria of RedZed Lending Solutions Pty Ltd. | L74: =IFERROR('Serviceability Calc'!C19,0) -> 0
I76: DTI must also be met for Regulated Loans
I77: For Company Borrowers DSR must be >1.10
I78: For IO Inv loans > 75% DSR must be >1.10
D79: Debt to Income Ratio - minimum requirements - Regulated Loans Only | L79: DTI
D80: Income Type | E80: DTI >6.0x - 7.0x | F80: DTI >7.0x-<8.0x | G80: DTI >8.0x | L80: =IFERROR((SUM(G55:G56)+SUM(G59:G62)+G65)/(SUM(G13:G16)+SUM(L19:L22)*12+SUM(G24:G25)),"") -> 
D81: Self Employed | E81: DSR >1.10 (>=1.06 with rental income) | F81: DSR >1.10 | G81: Contact your BDM
D82: Self Employed + PAYG (PAYG<25% of total income) | E82: DSR >1.10 (>=1.06 with rental income) | F82: Contact your BDM | G82: Contact your BDM
D83: PAYG Only (or PAYG >25% of total income) | E83: Max DTI 6.5x DSR >1.10 (DSR >=1.06 with rental income) | F83: Contact your BDM | G83: Contact your BDM
D86: I, the Introducer, confirm that reasonable enquiries about the applicant(s) current and ongoing financial situation have been undertaken and are reflected in the figures entered into this calculation. The applicants(s) have been given sufficient time to consider the declared monthly living expenses amount which has been derived following due consideration.
M91: ='Version Control'!I1 -> V10.16 220616

Sheet HEM (hidden)
A1: Income Range ($) | B1: Single Adult | C1: Single Adult +1 | D1: Single Adult +2 | E1: Single Adult +3 | F1: Single Adult +4 | G1: Single Adult +5 | H1: Single Adult +6 | I1: Couple | J1: Couple +1 | K1: Couple +2 | L1: Couple +3 | M1: Couple +4 | N1: Couple +5 | O1: Couple +6
A2: 0 - 23,000 | B2: 1130.964792 | C2: 1611.717592 | D2: 2050.200806 | E2: 2623.663496 | F2: 2973.608269 | G2: 3634.303725 | H2: 4293.586234 | I2: 2248.738938 | J2: 2651.986829 | K2: 2944.797008 | L2: 3285.477858 | M2: 3819.370118 | N2: 4138.482708 | O2: 4457.595299
A3: 23,001 - 34,000 | B3: 1204.96545 | C3: 1611.717592 | D3: 2050.200806 | E3: 2623.663496 | F3: 2973.608269 | G3: 3634.303725 | H3: 4293.586234 | I3: 2248.738938 | J3: 2651.986829 | K3: 2944.797008 | L3: 3285.477858 | M3: 3819.370118 | N3: 4138.482708 | O3: 4457.595299
A4: 34,001 - 46,000 | B4: 1264.443228 | C4: 1670.743871 | D4: 2109.442659 | E4: 2623.663496 | F4: 2973.608269 | G4: 3634.303725 | H4: 4293.586234 | I4: 2308.46163 | J4: 2651.986829 | K4: 2944.797008 | L4: 3285.477858 | M4: 3819.370118 | N4: 4138.482708 | O4: 4457.595299
A5: 46,001 - 57,000 | B5: 1350.506567 | C5: 1756.153657 | D5: 2195.164424 | E5: 2712.137792 | F5: 3059.644025 | G5: 3634.303725 | H5: 4293.586234 | I5: 2394.879159 | J5: 2738.078245 | K5: 3031.072768 | L5: 3285.477858 | M5: 3819.370118 | N5: 4138.482708 | O5: 4457.595299
A6: 57,001 - 69,000 | B6: 1497.94015 | C6: 1902.467937 | D6: 2342.013118 | E6: 2863.701774 | F6: 3207.03101 | G6: 3634.303725 | H6: 4293.586234 | I6: 2542.919757 | J6: 2885.560183 | K6: 3178.870502 | L6: 3433.085674 | M6: 3819.370118 | N6: 4138.482708 | O6: 4457.595299
A7: 69,001 - 92,000 | B7: 1730.060823 | C7: 2132.826144 | D7: 2573.21271 | E7: 3102.325146 | F7: 3439.077764 | G7: 3866.331999 | H7: 4293.586234 | I7: 2775.99589 | J7: 3117.756719 | K7: 3411.564427 | L7: 3665.480803 | M7: 4050.715981 | N7: 4369.396004 | O7: 4688.076027
A8: 92,001 - 115,000 | B8: 2056.211876 | C8: 2456.500865 | D8: 2898.069654 | E8: 3437.613193 | F8: 3765.125186 | G8: 4192.353514 | H8: 4619.581841 | I8: 3103.489549 | J8: 3444.014358 | K8: 3738.520666 | L8: 3992.017261 | M8: 4375.777912 | N8: 4693.850003 | O8: 5011.922094
A9: 115,001 - 138,000 | B9: 2347.833969 | C9: 2745.908754 | D9: 3188.534409 | E9: 3737.404518 | F9: 4056.65422 | G9: 4483.859282 | H9: 4911.064345 | I9: 3396.311873 | J9: 3735.732059 | K9: 4030.862609 | L9: 4283.984262 | M9: 4666.427007 | N9: 4983.95579 | O9: 5301.484574
A10: 138,001 - 161,000 | B10: 2707.840858 | C10: 3103.182212 | D10: 3547.113048 | E10: 4107.497303 | F10: 4416.546989 | G10: 4843.723522 | H10: 5270.900055 | I10: 3757.800931 | J10: 4095.85673 | K10: 4391.758795 | L10: 4644.416693 | M10: 5025.232023 | N10: 5342.089796 | O10: 5658.947569
A11: 161,001 - 184,000 | B11: 2838.701522 | C11: 3233.049132 | D11: 3677.454307 | E11: 4242.023798 | F11: 4547.365647 | G11: 4974.531678 | H11: 5401.69771 | I11: 3889.20011 | J11: 4226.760049 | K11: 4522.942411 | L11: 4775.431882 | M11: 5155.655684 | N11: 5472.269577 | O11: 5788.883471
A12: 184,001 - 229,000 | B12: 3053.888814 | C12: 3446.602725 | D12: 3891.787827 | E12: 4463.23945 | F12: 4762.484765 | G12: 5189.633753 | H12: 5616.782741 | I12: 4105.273277 | J12: 4442.017822 | K12: 4738.660787 | L12: 4990.873614 | M12: 5370.124494 | N12: 5686.337298 | O12: 6002.550103
A13: 229,001 - 287,000 | B13: 3586.138481 | C13: 3974.81125 | D13: 4421.925716 | E13: 5010.40006 | F13: 5294.565477 | G13: 5721.672226 | H13: 6148.778975 | I13: 4639.713812 | J13: 4974.441544 | K13: 5272.224879 | L13: 5523.75258 | M13: 5900.597618 | N13: 6215.81857 | O13: 6531.039522
A14: 287,001 - 344,000 | B14: 4138.72788 | C14: 4523.204838 | D14: 4972.322315 | E14: 5578.469802 | F14: 5846.978745 | G14: 6274.041462 | H14: 6701.104178 | I14: 5194.577887 | J14: 5527.211891 | K14: 5826.178369 | L14: 6076.995005 | M14: 6451.342267 | N14: 6765.533362 | O14: 7079.724457
A15: 344,001 - 574,000 | B15: 4208.877677 | C15: 4592.822008 | D15: 5042.193761 | E15: 5650.584809 | F15: 5917.106232 | G15: 6344.163371 | H15: 6771.22051 | I15: 5265.016448 | J15: 5597.38448 | K15: 5896.501692 | L15: 6147.227722 | M15: 6521.257887 | N15: 6835.318246 | O15: 7149.378606
A19: Income Range lookup | B19: Row Offset Value | D19: Dependents/Household Number | F19: 1 | G19: 2 | H19: 3 | I19: 4 | J19: 5 | K19: 6 | L19: 7
A20: 23001 | B20: 1 | D20: 0 | F20: 0 | G20: 7 | H20: 13 | I20: 13 | J20: 13 | K20: 13 | L20: 13
A21: 34001 | B21: 2 | D21: 1 | F21: 1 | G21: 8 | H21: 13 | I21: 13 | J21: 13 | K21: 13 | L21: 13
A22: 46001 | B22: 3 | D22: 2 | F22: 2 | G22: 9 | H22: 13 | I22: 13 | J22: 13 | K22: 13 | L22: 13
A23: 57001 | B23: 4 | D23: 3 | F23: 3 | G23: 10 | H23: 13 | I23: 13 | J23: 13 | K23: 13 | L23: 13
A24: 69001 | B24: 5 | D24: 4 | F24: 4 | G24: 11 | H24: 13 | I24: 13 | J24: 13 | K24: 13 | L24: 13
A25: 92001 | B25: 6 | D25: 5 | F25: 5 | G25: 12 | H25: 13 | I25: 13 | J25: 13 | K25: 13 | L25: 13
A26: 115001 | B26: 7 | D26: 6 | F26: 6 | G26: 13 | H26: 13 | I26: 13 | J26: 13 | K26: 13 | L26: 13
A27: 138001 | B27: 8 | D27: 7 | F27: 13 | G27: 13 | H27: 13 | I27: 13 | J27: 13 | K27: 13 | L27: 13
A28: 161001 | B28: 9 | D28: 8 | F28: 13 | G28: 13 | H28: 13 | I28: 13 | J28: 13 | K28: 13 | L28: 13
A29: 184001 | B29: 10 | D29: 9 | F29: 13 | G29: 13 | H29: 13 | I29: 13 | J29: 13 | K29: 13 | L29: 13
A30: 229001 | B30: 11 | D30: 10 | F30: 13 | G30: 13 | H30: 13 | I30: 13 | J30: 13 | K30: 13 | L30: 13
A31: 287001 | B31: 12 | D31: 11 | F31: 13 | G31: 13 | H31: 13 | I31: 13 | J31: 13 | K31: 13 | L31: 13
A32: 344001 | B32: 13 | D32: 12 | F32: 13 | G32: 13 | H32: 13 | I32: 13 | J32: 13 | K32: 13 | L32: 13
D39: Household 1 | H39: Household 2
D40: Gross Income | F40: =IF(EXACT(Serviceability!F13,D39),Serviceability!G13,0)+IF(EXACT(Serviceability!F14, D39),Serviceability!G14,0)+IF(EXACT(Serviceability!F15, D39),Serviceability!G15,0)+IF(EXACT(Serviceability!F16, D39),Serviceability!G16,0) -> 0 | H40: Gross Income | J40: =IF(EXACT(Serviceability!F13, H39),Serviceability!G13,0)+IF(EXACT(Serviceability!F14,H39),Serviceability!G14,0)+IF(EXACT(Serviceability!F15,H39),Serviceability!G15,0)+IF(EXACT(Serviceability!F16,H39),Serviceability!G16,0) -> 0
D41: Single/Couple | F41: =+Serviceability!$G$41 -> 0 | H41: Single/Couple | J41: =Serviceability!G43 -> 0
D42: Dependents | F42: =+Serviceability!$G$42 -> 0 | H42: Dependents | J42: =Serviceability!G44 -> 0
D43: HEM Row Offset Value | F43: =IFERROR(VLOOKUP(F40,HEM!$A$20:$B$32,2,TRUE),0) -> 0 | H43: HEM Row Offset Value | J43: =IFERROR(VLOOKUP(J40,HEM!$A$20:$B$32,2,TRUE),0) -> 0
D44: HEM Column Offset Value | F44: =OFFSET($E$20,F42,F41) -> 0 | H44: HEM Column Offset Value | J44: =OFFSET($E$20,J42,J41) -> 0
D45: HEM Starting Value | F45: =OFFSET(B2,0,0) -> 1130.964792 | H45: HEM Starting Value | J45: =OFFSET(F2,0,0) -> 2973.608269
D46: HEM Min Living Expense | F46: =IF(F40=0, 0, OFFSET($B$2,F43,F44)) -> 0 | H46: HEM Min Living Expense | J46: =IF(J40=0,0,OFFSET($B$2,J43,J44)) -> 0

Sheet Tables (hidden)
A2: Tax
G3: Flood Levy
A4: Wages Over | B4: Not to Exceed | C4: Tax Rate | G4: Taxable income | H4: Flood levy on this income
A5: 0 | B5: 18200 | C5: 0 | G5: $0 to $50,000 | H5: Nil | I5: 0 | J5: 50000 | K5: 0
A6: =B5+1 -> 18201 | B6: 45000 | C6: 0.19 | D6: =D5+C5*(B5-A5) -> 0 | G6: $50,001 to $100,000 | H6: Half a cent for each $1 over $50,000 | I6: 50001 | J6: 100000 | K6: 0 | L6: =(J6-J5)*K6 -> 0
A7: =B6+1 -> 45001 | B7: 120000 | C7: 0.325 | D7: =ROUNDUP(D6+C6*(B6-A6),0) -> 5092 | G7: Over $100,000 | H7: $250 plus 1c for each $1 over $100,000 | I7: =J6+1 -> 100001 | K7: 0
A8: =B7+1 -> 120001 | B8: 180000 | C8: 0.37 | D8: =ROUNDUP(D7+C7*(B7-A7),0) -> 29467
A9: =B8+1 -> 180001 | C9: 0.45 | D9: =ROUNDUP(D8+C8*(B8-A8),0) -> 51667
A12: Medicare Levy
G13: Taxable income | H13: Tax on this income
A14: 0 | B14: 16284 | C14: 0 | E14: not currently used | G14: 0 - $18,200 | H14: Nil
A15: 16284 | B15: 17604 | C15: 0.2 | G15: $18,201 - $37,000 | H15: 19c for each $1 over $18,200
A16: 17604+ | C16: 0.02 | G16: $37,001 - $90,000 | H16: $3,572 plus 32.5c for each $1 over $37,000
G17: $90,001 - $180,000 | H17: $17,547 plus 37c for each $1 over $87,000
G18: $180,001 and over | H18: $54,547 plus 45c for each $1 over $180,000
A20: Company Tax
A22: Rate | B22: 0.275
A28: APR Buffer | B28: 0.025
A29: Minimum Rate | B29: 0.07
A31: RedZed Loan Applied For: Repayment With Buffer | C31: Buffered % | D31: Minimum % | E31: Rate % | F31: Buffer % | G31: Buffered % | H31: Total Term | I31: Interest Only Term | J31: Net Term | K31: Amount
A32: Buffered Loan 1 | B32: =IF(Serviceability!H55=0,0,-PMT((D32)/12,J32*12,Serviceability!G55)) -> 0 | C32: =G32 -> 0.025 | D32: =IF(C32>=$B$29,C32,$B$29) -> 0.07 | E32: =Serviceability!J55 -> 0 | F32: =$B$28 -> 0.025 | G32: =E32+F32 -> 0.025 | H32: =Serviceability!H55 -> 0 | I32: =Serviceability!I55 -> 0 | J32: =H32-I32 -> 0 | K32: =Serviceability!G55 -> 0
A33: Buffered Loan 2 | B33: =IF(Serviceability!H56=0,0,-PMT((D33)/12,J33*12,Serviceability!G56)) -> 0 | C33: =G33 -> 0.025 | D33: =IF(C33>=$B$29,C33,$B$29) -> 0.07 | E33: =Serviceability!J56 -> 0 | F33: =$B$28 -> 0.025 | G33: =E33+F33 -> 0.025 | H33: =Serviceability!H56 -> 0 | I33: =Serviceability!I56 -> 0 | J33: =H33-I33 -> 0 | K33: =Serviceability!G56 -> 0
A36: Existing Loan: Repayment With Buffer
A37: Buffered Loan 1 | B37: 0.2 | C37: =Serviceability!L59*(1+Tables!B37) -> 0 | G37: =Serviceability!L59 -> 0 | H37: =Serviceability!E59 -> Loan 1 - Existing Secured
A38: Buffered Loan 2 | B38: 0.2 | C38: =Serviceability!L60*(1+Tables!B38) -> 0 | G38: =Serviceability!L60 -> 0 | H38: =Serviceability!E60 -> Loan 2 - Existing Secured
A41: Additional Fees for Serviceability
A42: Fees - Loan 1 | B42: 15 | C42: =IF(Serviceability!L55=0,0,15) -> 0 | D42: Monthly Account Keeping Fee Resi
A43: Fees - Loan 2 | B43: 15 | C43: =IF(Serviceability!L56=0,0,15) -> 0 | D43: Monthly Account Keeping Fee Resi
A47: Column1 | B47: Single Adult | C47: Single Adult + 1 Dependant | D47: Single Adult + 2 Dependants | E47: Single Adult + 3 Dependants | F47: Single Adult + 4 Dependants | G47: Single Adult + 5 Dependants | H47: Single Adult + 6 Dependants | I47: Couple | J47: Couple + 1 Dependant | K47: Couple + 2 Dependants | L47: Couple + 3 Dependants | M47: Couple + 4 Dependants | N47: Couple + 5 Dependants | O47: Couple + 6 Dependants
A48: Income Range ($) | B48: Proposed Benchmark | C48: Proposed Benchmark | D48: Proposed Benchmark | E48: Proposed Benchmark | F48: Proposed Benchmark | G48: Proposed Benchmark | H48: Proposed Benchmark | I48: Proposed Benchmark | J48: Proposed Benchmark | K48: Proposed Benchmark | L48: Proposed Benchmark | M48: Proposed Benchmark | N48: Proposed Benchmark | O48: Proposed Benchmark
A49: 0 - 23,000 | B49: 1130.964792 | C49: 1611.717592 | D49: 2050.200806 | E49: 2623.663496 | F49: 2973.608269 | G49: 3634.303725 | H49: 4293.586234 | I49: 2248.738938 | J49: 2651.986829 | K49: 2944.797008 | L49: 3285.477858 | M49: 3819.370118 | N49: 4138.482708 | O49: 4457.595299
A50: 23,001 - 34,000 | B50: 1204.96545 | C50: 1611.717592 | D50: 2050.200806 | E50: 2623.663496 | F50: 2973.608269 | G50: 3634.303725 | H50: 4293.586234 | I50: 2248.738938 | J50: 2651.986829 | K50: 2944.797008 | L50: 3285.477858 | M50: 3819.370118 | N50: 4138.482708 | O50: 4457.595299
A51: 34,001 - 46,000 | B51: 1264.443228 | C51: 1670.743871 | D51: 2109.442659 | E51: 2623.663496 | F51: 2973.608269 | G51: 3634.303725 | H51: 4293.586234 | I51: 2308.46163 | J51: 2651.986829 | K51: 2944.797008 | L51: 3285.477858 | M51: 3819.370118 | N51: 4138.482708 | O51: 4457.595299
A52: 46,001 - 57,000 | B52: 1350.506567 | C52: 1756.153657 | D52: 2195.164424 | E52: 2712.137792 | F52: 3059.644025 | G52: 3634.303725 | H52: 4293.586234 | I52: 2394.879159 | J52: 2738.078245 | K52: 3031.072768 | L52: 3285.477858 | M52: 3819.370118 | N52: 4138.482708 | O52: 4457.595299
A53: 57,001 - 69,000 | B53: 1497.94015 | C53: 1902.467937 | D53: 2342.013118 | E53: 2863.701774 | F53: 3207.03101 | G53: 3634.303725 | H53: 4293.586234 | I53: 2542.919757 | J53: 2885.560183 | K53: 3178.870502 | L53: 3433.085674 | M53: 3819.370118 | N53: 4138.482708 | O53: 4457.595299
A54: 69,001 - 92,000 | B54: 1730.060823 | C54: 2132.826144 | D54: 2573.21271 | E54: 3102.325146 | F54: 3439.077764 | G54: 3866.331999 | H54: 4293.586234 | I54: 2775.99589 | J54: 3117.756719 | K54: 3411.564427 | L54: 3665.480803 | M54: 4050.715981 | N54: 4369.396004 | O54: 4688.076027
A55: 92,001 - 115,000 | B55: 2056.211876 | C55: 2456.500865 | D55: 2898.069654 | E55: 3437.613193 | F55: 3765.125186 | G55: 4192.353514 | H55: 4619.581841 | I55: 3103.489549 | J55: 3444.014358 | K55: 3738.520666 | L55: 3992.017261 | M55: 4375.777912 | N55: 4693.850003 | O55: 5011.922094
A56: 115,001 - 138,000 | B56: 2347.833969 | C56: 2745.908754 | D56: 3188.534409 | E56: 3737.404518 | F56: 4056.65422 | G56: 4483.859282 | H56: 4911.064345 | I56: 3396.311873 | J56: 3735.732059 | K56: 4030.862609 | L56: 4283.984262 | M56: 4666.427007 | N56: 4983.95579 | O56: 5301.484574
A57: 138,001 - 161,000 | B57: 2707.840858 | C57: 3103.182212 | D57: 3547.113048 | E57: 4107.497303 | F57: 4416.546989 | G57: 4843.723522 | H57: 5270.900055 | I57: 3757.800931 | J57: 4095.85673 | K57: 4391.758795 | L57: 4644.416693 | M57: 5025.232023 | N57: 5342.089796 | O57: 5658.947569
A58: 161,001 - 184,000 | B58: 2838.701522 | C58: 3233.049132 | D58: 3677.454307 | E58: 4242.023798 | F58: 4547.365647 | G58: 4974.531678 | H58: 5401.69771 | I58: 3889.20011 | J58: 4226.760049 | K58: 4522.942411 | L58: 4775.431882 | M58: 5155.655684 | N58: 5472.269577 | O58: 5788.883471
A59: 184,001 - 229,000 | B59: 3053.888814 | C59: 3446.602725 | D59: 3891.787827 | E59: 4463.23945 | F59: 4762.484765 | G59: 5189.633753 | H59: 5616.782741 | I59: 4105.273277 | J59: 4442.017822 | K59: 4738.660787 | L59: 4990.873614 | M59: 5370.124494 | N59: 5686.337298 | O59: 6002.550103
A60: 229,001 - 287,000 | B60: 3586.138481 | C60: 3974.81125 | D60: 4421.925716 | E60: 5010.40006 | F60: 5294.565477 | G60: 5721.672226 | H60: 6148.778975 | I60: 4639.713812 | J60: 4974.441544 | K60: 5272.224879 | L60: 5523.75258 | M60: 5900.597618 | N60: 6215.81857 | O60: 6531.039522
A61: 287,001 - 344,000 | B61: 4138.72788 | C61: 4523.204838 | D61: 4972.322315 | E61: 5578.469802 | F61: 5846.978745 | G61: 6274.041462 | H61: 6701.104178 | I61: 5194.577887 | J61: 5527.211891 | K61: 5826.178369 | L61: 6076.995005 | M61: 6451.342267 | N61: 6765.533362 | O61: 7079.724457
A62: 344,001 - 574,000 | B62: 4208.877677 | C62: 4592.822008 | D62: 5042.193761 | E62: 5650.584809 | F62: 5917.106232 | G62: 6344.163371 | H62: 6771.22051 | I62: 5265.016448 | J62: 5597.38448 | K62: 5896.501692 | L62: 6147.227722 | M62: 6521.257887 | N62: 6835.318246 | O62: 7149.378606
A68: Household 1
A69: Household 2 | B69: Monthly Income | F69: Other Income | H69: Company
B71: Household 1 | C71: Household 2 | F71: Household 1 | G71: Household 2 | I71: Always Household 1
A72: Applicant / Guarantor 1 | B72: =IF(EXACT(Serviceability!F13, "Household 1"),Serviceability!G13,0) -> 0 | C72: =IF(EXACT(Serviceability!F13, "Household 2"),Serviceability!G13,0) -> 0 | E72: Applicant / Guarantor 1 | F72: =IF(EXACT(Serviceability!F19, "Household 1"),Serviceability!L19,0) -> 0 | G72: =IF(EXACT(Serviceability!F19, "Household 2"),Serviceability!L19,0) -> 0 | H72: Applicant / Guarantor 1 | I72: =Serviceability!G30 -> 0
A73: Applicant / Guarantor 2 | B73: =IF(EXACT(Serviceability!F14, "Household 1"),Serviceability!G14,0) -> 0 | C73: =IF(EXACT(Serviceability!F14, "Household 2"),Serviceability!G14,0) -> 0 | E73: Applicant / Guarantor 2 | F73: =IF(EXACT(Serviceability!F20, "Household 1"),Serviceability!L20,0) -> 0 | G73: =IF(EXACT(Serviceability!F20, "Household 2"),Serviceability!L20,0) -> 0
A74: Applicant / Guarantor 3 | B74: =IF(EXACT(Serviceability!F15, "Household 1"),Serviceability!G15,0) -> 0 | C74: =IF(EXACT(Serviceability!F15, "Household 2"),Serviceability!G15,0) -> 0 | E74: Applicant / Guarantor 3 | F74: =IF(EXACT(Serviceability!F21, "Household 1"),Serviceability!L21,0) -> 0 | G74: =IF(EXACT(Serviceability!F21, "Household 2"),Serviceability!L21,0) -> 0
A75: Applicant / Guarantor 4 | B75: =IF(EXACT(Serviceability!F16, "Household 1"),Serviceability!G16,0) -> 0 | C75: =IF(EXACT(Serviceability!F16, "Household 2"),Serviceability!G16,0) -> 0 | E75: Applicant / Guarantor 4 | F75: =IF(EXACT(Serviceability!F22, "Household 1"),Serviceability!L22,0) -> 0 | G75: =IF(EXACT(Serviceability!F22, "Household 2"),Serviceability!L22,0) -> 0
A76: Applicant Totals | B76: =SUM(B72:B75,F76,I72) -> 0 | C76: =SUM(C72:C75,G76) -> 0 | E76: Applicant Totals | F76: =SUM(F72:F75)*12 -> 0 | G76: =SUM(G72:G75)*12 -> 0
A78: Adults - household | C78: =IF(C76<=59999,"test",IF(B3>93,"A",IF(B3>89,"A-",IF(B3>87,"B+",IF(B3>83,"B",IF(B3>79,"B-", IF(B3>77,"C+",IF(B3>73,"C",IF(B3>69,"C-",IF(B3>57,"D+",IF(B3>53,"D",IF(B3>49,"D-","")))))))))))) -> test
A79: Adults - household - new
A80: Dependant children - household
A82: Adult | B82: =Serviceability!G41 -> 0 | C82: =Serviceability!G43 -> 0 | E82: =IF(Serviceability!G41>2, "Please call 1300 722 462 for assistance with calculation "," ") ->  | N82: offset amount
A83: Dependent | B83: =Serviceability!G42 -> 0 | C83: =Serviceability!G44 -> 0 | E83: =IF(Serviceability!G43>2, "Please call 1300 722 462 for assistance with calculation "," ") -> 
B84: ="Adult-" & B82 & ",Dependents-" & B83 -> Adult-0,Dependents-0 | C84: ="Adult-" & C82 & ",Dependents-" & C83 -> Adult-0,Dependents-0
A86: LookupKey | B86: Household | C86: Income Range | D86: Living Expense
A87: =B87 & ":" & C87 -> Adult-1,Dependents-0:0-23,000 | B87: Adult-1,Dependents-0 | C87: 0-23,000 | D87: 1130.964792
A88: =B88 & ":" & C88 -> Adult-1,Dependents-0:23,001-34,000 | B88: Adult-1,Dependents-0 | C88: 23,001-34,000 | D88: 1204.96545
A89: Adult-1,Dependents-0:34,001-46,000 | B89: Adult-1,Dependents-0 | C89: 34,001-46,000 | D89: 1264.443228
A90: Adult-1,Dependents-0:46,001-57,000 | B90: Adult-1,Dependents-0 | C90: 46,001-57,000 | D90: 1350.506567
A91: Adult-1,Dependents-0:57,001-69,000 | B91: Adult-1,Dependents-0 | C91: 57,001-69,000 | D91: 1497.94015
A92: Adult-1,Dependents-0:69,001-92,000 | B92: Adult-1,Dependents-0 | C92: 69,001-92,000 | D92: 1730.060823
A93: Adult-1,Dependents-0:92,001-115,000 | B93: Adult-1,Dependents-0 | C93: 92,001-115,000 | D93: 2056.211876
A94: Adult-1,Dependents-0:115,001-138,000 | B94: Adult-1,Dependents-0 | C94: 115,001-138,000 | D94: 2347.833969
A95: Adult-1,Dependents-0:138,001-161,000 | B95: Adult-1,Dependents-0 | C95: 138,001-161,000 | D95: 2707.840858
A96: Adult-1,Dependents-0:161,001-184,000 | B96: Adult-1,Dependents-0 | C96: 161,001-184,000 | D96: 2838.701522
A97: Adult-1,Dependents-0:184,001-229,000 | B97: Adult-1,Dependents-0 | C97: 184,001-229,000 | D97: 3053.888814
A98: Adult-1,Dependents-0:229,001-287,000 | B98: Adult-1,Dependents-0 | C98: 229,001-287,000 | D98: 3586.138481
A99: Adult-1,Dependents-0:287,001-344,000 | B99: Adult-1,Dependents-0 | C99: 287,001-344,000 | D99: 4138.72788
A100: Adult-1,Dependents-0:344,001-574,000 | B100: Adult-1,Dependents-0 | C100: 344,001-574,000 | D100: 4208.877677
A102: Adult-1,Dependents-1:0-23,000 | B102: Adult-1,Dependents-1 | C102: 0-23,000 | D102: 1611.717592
A103: Adult-1,Dependents-1:23,001-34,000 | B103: Adult-1,Dependents-1 | C103: 23,001-34,000 | D103: 1611.717592
A104: Adult-1,Dependents-1:34,001-46,000 | B104: Adult-1,Dependents-1 | C104: 34,001-46,000 | D104: 1670.743871
A105: Adult-1,Dependents-1:46,001-57,000 | B105: Adult-1,Dependents-1 | C105: 46,001-57,000 | D105: 1756.153657
A106: Adult-1,Dependents-1:57,001-69,000 | B106: Adult-1,Dependents-1 | C106: 57,001-69,000 | D106: 1902.467937
A107: Adult-1,Dependents-1:69,001-92,000 | B107: Adult-1,Dependents-1 | C107: 69,001-92,000 | D107: 2132.826144
A108: Adult-1,Dependents-1:92,001-115,000 | B108: Adult-1,Dependents-1 | C108: 92,001-115,000 | D108: 2456.500865
A109: Adult-1,Dependents-1:115,001-138,000 | B109: Adult-1,Dependents-1 | C109: 115,001-138,000 | D109: 2745.908754
A110: Adult-1,Dependents-1:138,001-161,000 | B110: Adult-1,Dependents-1 | C110: 138,001-161,000 | D110: 3103.182212
A111: Adult-1,Dependents-1:161,001-184,000 | B111: Adult-1,Dependents-1 | C111: 161,001-184,000 | D111: 3233.049132
A112: Adult-1,Dependents-1:184,001-229,000 | B112: Adult-1,Dependents-1 | C112: 184,001-229,000 | D112: 3446.602725
A113: Adult-1,Dependents-1:229,001-287,000 | B113: Adult-1,Dependents-1 | C113: 229,001-287,000 | D113: 3974.81125
A114: Adult-1,Dependents-1:287,001-344,000 | B114: Adult-1,Dependents-1 | C114: 287,001-344,000 | D114: 4523.204838
A115: Adult-1,Dependents-1:344,001-574,000 | B115: Adult-1,Dependents-1 | C115: 344,001-574,000 | D115: 4592.822008
A117: =B117 & ":" & C117 -> Adult-1,Dependents-2:0-23,000 | B117: Adult-1,Dependents-2 | C117: 0-23,000 | D117: 2050.200806
A118: Adult-1,Dependents-2:23,001-34,000 | B118: Adult-1,Dependents-2 | C118: 23,001-34,000 | D118: 2050.200806
A119: Adult-1,Dependents-2:34,001-46,000 | B119: Adult-1,Dependents-2 | C119: 34,001-46,000 | D119: 2109.442659
A120: Adult-1,Dependents-2:46,001-57,000 | B120: Adult-1,Dependents-2 | C120: 46,001-57,000 | D120: 2195.164424
A121: Adult-1,Dependents-2:57,001-69,000 | B121: Adult-1,Dependents-2 | C121: 57,001-69,000 | D121: 2342.013118
A122: Adult-1,Dependents-2:69,001-92,000 | B122: Adult-1,Dependents-2 | C122: 69,001-92,000 | D122: 2573.21271
A123: Adult-1,Dependents-2:92,001-115,000 | B123: Adult-1,Dependents-2 | C123: 92,001-115,000 | D123: 2898.069654
A124: Adult-1,Dependents-2:115,001-138,000 | B124: Adult-1,Dependents-2 | C124: 115,001-138,000 | D124: 3188.534409
A125: Adult-1,Dependents-2:138,001-161,000 | B125: Adult-1,Dependents-2 | C125: 138,001-161,000 | D125: 3547.113048
A126: Adult-1,Dependents-2:161,001-184,000 | B126: Adult-1,Dependents-2 | C126: 161,001-184,000 | D126: 3677.454307
A127: Adult-1,Dependents-2:184,001-229,000 | B127: Adult-1,Dependents-2 | C127: 184,001-229,000 | D127: 3891.787827
A128: Adult-1,Dependents-2:229,001-287,000 | B128: Adult-1,Dependents-2 | C128: 229,001-287,000 | D128: 4421.925716
A129: Adult-1,Dependents-2:287,001-344,000 | B129: Adult-1,Dependents-2 | C129: 287,001-344,000 | D129: 4972.322315
A130: Adult-1,Dependents-2:344,001-574,000 | B130: Adult-1,Dependents-2 | C130: 344,001-574,000 | D130: 5042.193761
A132: =B132 & ":" & C132 -> Adult-1,Dependents-3:0-23,000 | B132: Adult-1,Dependents-3 | C132: 0-23,000 | D132: 2623.663496
A133: Adult-1,Dependents-3:23,001-34,000 | B133: Adult-1,Dependents-3 | C133: 23,001-34,000 | D133: 2623.663496
A134: Adult-1,Dependents-3:34,001-46,000 | B134: Adult-1,Dependents-3 | C134: 34,001-46,000 | D134: 2623.663496
A135: Adult-1,Dependents-3:46,001-57,000 | B135: Adult-1,Dependents-3 | C135: 46,001-57,000 | D135: 2712.137792
A136: Adult-1,Dependents-3:57,001-69,000 | B136: Adult-1,Dependents-3 | C136: 57,001-69,000 | D136: 2863.701774
A137: Adult-1,Dependents-3:69,001-92,000 | B137: Adult-1,Dependents-3 | C137: 69,001-92,000 | D137: 3102.325146
A138: Adult-1,Dependents-3:92,001-115,000 | B138: Adult-1,Dependents-3 | C138: 92,001-115,000 | D138: 3437.613193
A139: Adult-1,Dependents-3:115,001-138,000 | B139: Adult-1,Dependents-3 | C139: 115,001-138,000 | D139: 3737.404518
A140: Adult-1,Dependents-3:138,001-161,000 | B140: Adult-1,Dependents-3 | C140: 138,001-161,000 | D140: 4107.497303
A141: Adult-1,Dependents-3:161,001-184,000 | B141: Adult-1,Dependents-3 | C141: 161,001-184,000 | D141: 4242.023798
A142: Adult-1,Dependents-3:184,001-229,000 | B142: Adult-1,Dependents-3 | C142: 184,001-229,000 | D142: 4463.23945
A143: Adult-1,Dependents-3:229,001-287,000 | B143: Adult-1,Dependents-3 | C143: 229,001-287,000 | D143: 5010.40006
A144: Adult-1,Dependents-3:287,001-344,000 | B144: Adult-1,Dependents-3 | C144: 287,001-344,000 | D144: 5578.469802
A145: Adult-1,Dependents-3:344,001-574,000 | B145: Adult-1,Dependents-3 | C145: 344,001-574,000 | D145: 5650.584809
A148: =B148 & ":" & C148 -> Adult-1,Dependents-4:0-23,000 | B148: Adult-1,Dependents-4 | C148: 0-23,000 | D148: 2973.608269
A149: Adult-1,Dependents-4:23,001-34,000 | B149: Adult-1,Dependents-4 | C149: 23,001-34,000 | D149: 2973.608269
A150: Adult-1,Dependents-4:34,001-46,000 | B150: Adult-1,Dependents-4 | C150: 34,001-46,000 | D150: 2973.608269
A151: Adult-1,Dependents-4:46,001-57,000 | B151: Adult-1,Dependents-4 | C151: 46,001-57,000 | D151: 3059.644025
A152: Adult-1,Dependents-4:57,001-69,000 | B152: Adult-1,Dependents-4 | C152: 57,001-69,000 | D152: 3207.03101
A153: Adult-1,Dependents-4:69,001-92,000 | B153: Adult-1,Dependents-4 | C153: 69,001-92,000 | D153: 3439.077764
A154: Adult-1,Dependents-4:92,001-115,000 | B154: Adult-1,Dependents-4 | C154: 92,001-115,000 | D154: 3765.125186
A155: Adult-1,Dependents-4:115,001-138,000 | B155: Adult-1,Dependents-4 | C155: 115,001-138,000 | D155: 4056.65422
A156: Adult-1,Dependents-4:138,001-161,000 | B156: Adult-1,Dependents-4 | C156: 138,001-161,000 | D156: 4416.546989
A157: Adult-1,Dependents-4:161,001-184,000 | B157: Adult-1,Dependents-4 | C157: 161,001-184,000 | D157: 4547.365647
A158: Adult-1,Dependents-4:184,001-229,000 | B158: Adult-1,Dependents-4 | C158: 184,001-229,000 | D158: 4762.484765
A159: Adult-1,Dependents-4:229,001-287,000 | B159: Adult-1,Dependents-4 | C159: 229,001-287,000 | D159: 5294.565477
A160: Adult-1,Dependents-4:287,001-344,000 | B160: Adult-1,Dependents-4 | C160: 287,001-344,000 | D160: 5846.978745
A161: Adult-1,Dependents-4:344,001-574,000 | B161: Adult-1,Dependents-4 | C161: 344,001-574,000 | D161: 5917.106232
A163: =B163 & ":" & C163 -> Adult-1,Dependents-5:0-23,000 | B163: Adult-1,Dependents-5 | C163: 0-23,000 | D163: 3634.303725
A164: Adult-1,Dependents-5:23,001-34,000 | B164: Adult-1,Dependents-5 | C164: 23,001-34,000 | D164: 3634.303725
A165: Adult-1,Dependents-5:34,001-46,000 | B165: Adult-1,Dependents-5 | C165: 34,001-46,000 | D165: 3634.303725
A166: Adult-1,Dependents-5:46,001-57,000 | B166: Adult-1,Dependents-5 | C166: 46,001-57,000 | D166: 3634.303725
A167: Adult-1,Dependents-5:57,001-69,000 | B167: Adult-1,Dependents-5 | C167: 57,001-69,000 | D167: 3634.303725
A168: Adult-1,Dependents-5:69,001-92,000 | B168: Adult-1,Dependents-5 | C168: 69,001-92,000 | D168: 3866.331999
A169: Adult-1,Dependents-5:92,001-115,000 | B169: Adult-1,Dependents-5 | C169: 92,001-115,000 | D169: 4192.353514
A170: Adult-1,Dependents-5:115,001-138,000 | B170: Adult-1,Dependents-5 | C170: 115,001-138,000 | D170: 4483.859282
A171: Adult-1,Dependents-5:138,001-161,000 | B171: Adult-1,Dependents-5 | C171: 138,001-161,000 | D171: 4843.723522
A172: Adult-1,Dependents-5:161,001-184,000 | B172: Adult-1,Dependents-5 | C172: 161,001-184,000 | D172: 4974.531678
A173: Adult-1,Dependents-5:184,001-229,000 | B173: Adult-1,Dependents-5 | C173: 184,001-229,000 | D173: 5189.633753
A174: Adult-1,Dependents-5:229,001-287,000 | B174: Adult-1,Dependents-5 | C174: 229,001-287,000 | D174: 5721.672226
A175: Adult-1,Dependents-5:287,001-344,000 | B175: Adult-1,Dependents-5 | C175: 287,001-344,000 | D175: 6274.041462
A176: Adult-1,Dependents-5:344,001-574,000 | B176: Adult-1,Dependents-5 | C176: 344,001-574,000 | D176: 6344.163371
A178: =B178 & ":" & C178 -> Adult-1,Dependents-6:0-23,000 | B178: Adult-1,Dependents-6 | C178: 0-23,000 | D178: 4293.586234
A179: Adult-1,Dependents-6:23,001-34,000 | B179: Adult-1,Dependents-6 | C179: 23,001-34,000 | D179: 4293.586234
A180: Adult-1,Dependents-6:34,001-46,000 | B180: Adult-1,Dependents-6 | C180: 34,001-46,000 | D180: 4293.586234
A181: Adult-1,Dependents-6:46,001-57,000 | B181: Adult-1,Dependents-6 | C181: 46,001-57,000 | D181: 4293.586234
A182: Adult-1,Dependents-6:57,001-69,000 | B182: Adult-1,Dependents-6 | C182: 57,001-69,000 | D182: 4293.586234
A183: Adult-1,Dependents-6:69,001-92,000 | B183: Adult-1,Dependents-6 | C183: 69,001-92,000 | D183: 4293.586234
A184: Adult-1,Dependents-6:92,001-115,000 | B184: Adult-1,Dependents-6 | C184: 92,001-115,000 | D184: 4619.581841
A185: Adult-1,Dependents-6:115,001-138,000 | B185: Adult-1,Dependents-6 | C185: 115,001-138,000 | D185: 4911.064345
A186: Adult-1,Dependents-6:138,001-161,000 | B186: Adult-1,Dependents-6 | C186: 138,001-161,000 | D186: 5270.900055
A187: Adult-1,Dependents-6:161,001-184,000 | B187: Adult-1,Dependents-6 | C187: 161,001-184,000 | D187: 5401.69771
A188: Adult-1,Dependents-6:184,001-229,000 | B188: Adult-1,Dependents-6 | C188: 184,001-229,000 | D188: 5616.782741
A189: Adult-1,Dependents-6:229,001-287,000 | B189: Adult-1,Dependents-6 | C189: 229,001-287,000 | D189: 6148.778975
A190: Adult-1,Dependents-6:287,001-344,000 | B190: Adult-1,Dependents-6 | C190: 287,001-344,000 | D190: 6701.104178
A191: Adult-1,Dependents-6:344,001-574,000 | B191: Adult-1,Dependents-6 | C191: 344,001-574,000 | D191: 6771.22051
A193: =B193 & ":" & C193 -> Adult-2,Dependents-0:0-23,000 | B193: Adult-2,Dependents-0 | C193: 0-23,000 | D193: 2248.738938
A194: =B194 & ":" & C194 -> Adult-2,Dependents-0:23,001-34,000 | B194: Adult-2,Dependents-0 | C194: 23,001-34,000 | D194: 2248.738938
A195: Adult-2,Dependents-0:34,001-46,000 | B195: Adult-2,Dependents-0 | C195: 34,001-46,000 | D195: 2308.46163
A196: Adult-2,Dependents-0:46,001-57,000 | B196: Adult-2,Dependents-0 | C196: 46,001-57,000 | D196: 2394.879159
A197: Adult-2,Dependents-0:57,001-69,000 | B197: Adult-2,Dependents-0 | C197: 57,001-69,000 | D197: 2542.919757
A198: Adult-2,Dependents-0:69,001-92,000 | B198: Adult-2,Dependents-0 | C198: 69,001-92,000 | D198: 2775.99589
A199: Adult-2,Dependents-0:92,001-115,000 | B199: Adult-2,Dependents-0 | C199: 92,001-115,000 | D199: 3103.489549
A200: Adult-2,Dependents-0:115,001-138,000 | B200: Adult-2,Dependents-0 | C200: 115,001-138,000 | D200: 3396.311873
A201: Adult-2,Dependents-0:138,001-161,000 | B201: Adult-2,Dependents-0 | C201: 138,001-161,000 | D201: 3757.800931
A202: Adult-2,Dependents-0:161,001-184,000 | B202: Adult-2,Dependents-0 | C202: 161,001-184,000 | D202: 3889.20011
A203: Adult-2,Dependents-0:184,001-229,000 | B203: Adult-2,Dependents-0 | C203: 184,001-229,000 | D203: 4105.273277
A204: Adult-2,Dependents-0:229,001-287,000 | B204: Adult-2,Dependents-0 | C204: 229,001-287,000 | D204: 4639.713812
A205: Adult-2,Dependents-0:287,001-344,000 | B205: Adult-2,Dependents-0 | C205: 287,001-344,000 | D205: 5194.577887
A206: Adult-2,Dependents-0:344,001-574,000 | B206: Adult-2,Dependents-0 | C206: 344,001-574,000 | D206: 5265.016448
A208: =B208 & ":" & C208 -> Adult-2,Dependents-1:0-23,000 | B208: Adult-2,Dependents-1 | C208: 0-23,000 | D208: 2651.986829
A209: Adult-2,Dependents-1:23,001-34,000 | B209: Adult-2,Dependents-1 | C209: 23,001-34,000 | D209: 2651.986829
A210: Adult-2,Dependents-1:34,001-46,000 | B210: Adult-2,Dependents-1 | C210: 34,001-46,000 | D210: 2651.986829
A211: Adult-2,Dependents-1:46,001-57,000 | B211: Adult-2,Dependents-1 | C211: 46,001-57,000 | D211: 2738.078245
A212: Adult-2,Dependents-1:57,001-69,000 | B212: Adult-2,Dependents-1 | C212: 57,001-69,000 | D212: 2885.560183
A213: Adult-2,Dependents-1:69,001-92,000 | B213: Adult-2,Dependents-1 | C213: 69,001-92,000 | D213: 3117.756719
A214: Adult-2,Dependents-1:92,001-115,000 | B214: Adult-2,Dependents-1 | C214: 92,001-115,000 | D214: 3444.014358
A215: Adult-2,Dependents-1:115,001-138,000 | B215: Adult-2,Dependents-1 | C215: 115,001-138,000 | D215: 3735.732059
A216: Adult-2,Dependents-1:138,001-161,000 | B216: Adult-2,Dependents-1 | C216: 138,001-161,000 | D216: 4095.85673
A217: Adult-2,Dependents-1:161,001-184,000 | B217: Adult-2,Dependents-1 | C217: 161,001-184,000 | D217: 4226.760049
A218: Adult-2,Dependents-1:184,001-229,000 | B218: Adult-2,Dependents-1 | C218: 184,001-229,000 | D218: 4442.017822
A219: Adult-2,Dependents-1:229,001-287,000 | B219: Adult-2,Dependents-1 | C219: 229,001-287,000 | D219: 4974.441544
A220: Adult-2,Dependents-1:287,001-344,000 | B220: Adult-2,Dependents-1 | C220: 287,001-344,000 | D220: 5527.211891
A221: Adult-2,Dependents-1:344,001-574,000 | B221: Adult-2,Dependents-1 | C221: 344,001-574,000 | D221: 5597.38448
A223: =B223 & ":" & C223 -> Adult-2,Dependents-2:0-23,000 | B223: Adult-2,Dependents-2 | C223: 0-23,000 | D223: 2944.797008
A224: Adult-2,Dependents-2:23,001-34,000 | B224: Adult-2,Dependents-2 | C224: 23,001-34,000 | D224: 2944.797008
A225: Adult-2,Dependents-2:34,001-46,000 | B225: Adult-2,Dependents-2 | C225: 34,001-46,000 | D225: 2944.797008
A226: Adult-2,Dependents-2:46,001-57,000 | B226: Adult-2,Dependents-2 | C226: 46,001-57,000 | D226: 3031.072768
A227: Adult-2,Dependents-2:57,001-69,000 | B227: Adult-2,Dependents-2 | C227: 57,001-69,000 | D227: 3178.870502
A228: Adult-2,Dependents-2:69,001-92,000 | B228: Adult-2,Dependents-2 | C228: 69,001-92,000 | D228: 3411.564427
A229: Adult-2,Dependents-2:92,001-115,000 | B229: Adult-2,Dependents-2 | C229: 92,001-115,000 | D229: 3738.520666
A230: Adult-2,Dependents-2:115,001-138,000 | B230: Adult-2,Dependents-2 | C230: 115,001-138,000 | D230: 4030.862609
A231: Adult-2,Dependents-2:138,001-161,000 | B231: Adult-2,Dependents-2 | C231: 138,001-161,000 | D231: 4391.758795
A232: Adult-2,Dependents-2:161,001-184,000 | B232: Adult-2,Dependents-2 | C232: 161,001-184,000 | D232: 4522.942411
A233: Adult-2,Dependents-2:184,001-229,000 | B233: Adult-2,Dependents-2 | C233: 184,001-229,000 | D233: 4738.660787
A234: Adult-2,Dependents-2:229,001-287,000 | B234: Adult-2,Dependents-2 | C234: 229,001-287,000 | D234: 5272.224879
A235: Adult-2,Dependents-2:287,001-344,000 | B235: Adult-2,Dependents-2 | C235: 287,001-344,000 | D235: 5826.178369
A236: Adult-2,Dependents-2:344,001-574,000 | B236: Adult-2,Dependents-2 | C236: 344,001-574,000 | D236: 5896.501692
A238: =B238 & ":" & C238 -> Adult-2,Dependents-3:0-23,000 | B238: Adult-2,Dependents-3 | C238: 0-23,000 | D238: 3285.477858
... 63 more rows

Sheet Serviceability Calc (hidden)
A1: Serviceability Cell Calculation
B3: =Serviceability!D49&" (After Tax Rates Applied)" -> Available Income (After Tax Rates Applied) | C3: =Serviceability!L49 -> 0
B4: Divided by
B5: =Serviceability!D71 -> Total Monthly Commitments | C5: =SUM(Serviceability!L55:L70) -> 0
A6: Less | B6: =Serviceability!$D$53&" - "&Serviceability!E55 -> RedZed Loan Applied For - Loan 1 | C6: =-Serviceability!L55 -> 0
A7: Less | B7: =Serviceability!$D$53&" - "&Serviceability!E56 -> RedZed Loan Applied For - Loan 2 | C7: =-Serviceability!L56 -> 0
A8: Plus | B8: =Serviceability!$D$53&" - "&Tables!A32 -> RedZed Loan Applied For - Buffered Loan 1 | C8: =Tables!B32 -> 0
A9: Plus | B9: =Serviceability!$D$53&" - "&Tables!A33 -> RedZed Loan Applied For - Buffered Loan 2 | C9: =Tables!B33 -> 0
A10: Less | B10: =Serviceability!$D$59&": "&Serviceability!E59 -> Existing Loans: Loan 1 - Existing Secured | C10: =-Serviceability!L59 -> 0
A11: Less | B11: =Serviceability!$D$59&": "&Serviceability!E60 -> Existing Loans: Loan 2 - Existing Secured | C11: =-Serviceability!L60 -> 0
A12: Plus | B12: =Serviceability!$D$59&": "&Tables!A37 -> Existing Loans: Buffered Loan 1 | C12: =Tables!C37 -> 0
A13: Plus | B13: =Serviceability!$D$59&": "&Tables!A38 -> Existing Loans: Buffered Loan 2 | C13: =Tables!C38 -> 0
A14: Plus | B14: =Tables!A42 -> Fees - Loan 1 | C14: =Tables!C42 -> 0
A15: Plus | B15: =Tables!A43 -> Fees - Loan 2 | C15: =Tables!C43 -> 0
B17: Total Monthly Commitments (After Repayment Buffering & Fees) | C17: =SUM(C5:C16) -> 0
B19: =Serviceability!I74&" - Calculated as:" -> - Calculated as: | C19: =ROUNDUP(C3/C17,2) -> 

Sheet Tax Calc (hidden)
A1: Tax Calc
A3: Annual Gross | D3: Gross | E3: Tax | F3: Medicare | G3: Income offset | H3: Net | I3: Net Monthly
A5: Applicant / G'Tor 1 | B5: Salary / Self Employed | D5: =Serviceability!G13 -> 0 | E5: =IF(D5<Tables!$A$6,0,IF(AND(D5>Tables!$A$6,D5<Tables!$A$7),(D5-Tables!$A$6)*Tables!$C$6,IF(AND(D5>Tables!$A$7,D5<Tables!$A$8),Tables!$D$7+(D5-Tables!$A$7)*Tables!$C$7,IF(AND(D5>Tables!$A$8,D5<Tables!$A$9),Tables!$D$8+(D5-Tables!$A$8)*Tables!$C$8,IF(D5>Tables!$A$9,Tables!$D$9+(D5-Tables!$A$9)*Tables!$C$9))))) -> 0 | F5: =D5*Tables!C$16 -> 0 | G5: =IFERROR(((D5-VLOOKUP(D5,$A$29:$D$33,1,TRUE))*VLOOKUP(D5,$A$29:$D$33,3,TRUE)+VLOOKUP(D5,$A$29:$D$33,4,TRUE)),0)+IFERROR((IF(D5>66667,66667-45001,(D5-VLOOKUP(D5,$A$41:$D$43,1,TRUE)))*VLOOKUP(D5,$A$41:$D$43,3,TRUE)+VLOOKUP(D5,$A$41:$D$43,4,TRUE)),0) -> 0 | H5: =D5-E5-F5+G5 -> 0 | I5: =H5/12 -> 0
A6: Applicant / G'Tor 2 | B6: Salary / Self Employed | D6: =Serviceability!G14 -> 0 | E6: =IF(D6<Tables!$A$6,0,IF(AND(D6>=Tables!$A$6,D6<Tables!$A$7),(D6-Tables!$A$6)*Tables!$C$6,IF(AND(D6>=Tables!$A$7,D6<Tables!$A$8),Tables!$D$7+(D6-Tables!$A$7)*Tables!$C$7,IF(AND(D6>=Tables!$A$8,D6<Tables!$A$9),Tables!$D$8+(D6-Tables!$A$8)*Tables!$C$8,IF(D6>=Tables!$A$9,Tables!$D$9+(D6-Tables!$A$9)*Tables!$C$9))))) -> 0 | F6: =D6*Tables!C$16 -> 0 | G6: =IFERROR(((D6-VLOOKUP(D6,$A$29:$D$33,1,TRUE))*VLOOKUP(D6,$A$29:$D$33,3,TRUE)+VLOOKUP(D6,$A$29:$D$33,4,TRUE)),0)+IFERROR((IF(D6>66667,66667-45001,(D6-VLOOKUP(D6,$A$41:$D$43,1,TRUE)))*VLOOKUP(D6,$A$41:$D$43,3,TRUE)+VLOOKUP(D6,$A$41:$D$43,4,TRUE)),0) -> 0 | H6: =D6-E6-F6+G6 -> 0 | I6: =H6/12 -> 0
A7: Applicant / G'Tor 3 | B7: Salary / Self Employed | D7: =Serviceability!G15 -> 0 | E7: =IF(D7<Tables!$A$6,0,IF(AND(D7>=Tables!$A$6,D7<Tables!$A$7),(D7-Tables!$A$6)*Tables!$C$6,IF(AND(D7>=Tables!$A$7,D7<Tables!$A$8),Tables!$D$7+(D7-Tables!$A$7)*Tables!$C$7,IF(AND(D7>=Tables!$A$8,D7<Tables!$A$9),Tables!$D$8+(D7-Tables!$A$8)*Tables!$C$8,IF(D7>=Tables!$A$9,Tables!$D$9+(D7-Tables!$A$9)*Tables!$C$9))))) -> 0 | F7: =D7*Tables!C$16 -> 0 | G7: 0 | H7: 0 | I7: =H7/12 -> 0
A8: Applicant / G'Tor 4 | B8: Salary / Self Employed | D8: =Serviceability!G16 -> 0 | E8: =IF(D8<Tables!$A$6,0,IF(AND(D8>=Tables!$A$6,D8<Tables!$A$7),(D8-Tables!$A$6)*Tables!$C$6,IF(AND(D8>=Tables!$A$7,D8<Tables!$A$8),Tables!$D$7+(D8-Tables!$A$7)*Tables!$C$7,IF(AND(D8>=Tables!$A$8,D8<Tables!$A$9),Tables!$D$8+(D8-Tables!$A$8)*Tables!$C$8,IF(D8>=Tables!$A$9,Tables!$D$9+(D8-Tables!$A$9)*Tables!$C$9))))) -> 0 | F8: =D8*Tables!C$16 -> 0 | G8: 0 | H8: 0 | I8: =H8/12 -> 0
A19: Test lower and middle income offset | D19: Formula | E19: ( income - income lower range ) *offset rate + baseline
A21: income | B21: offset baseline | C21: Income lower range | D21: Income - Lower range | E21: offset reduced % | F21: offset reduced amount | G21: offset amount
A22: 80000 | B22: =VLOOKUP(A22,A29:D33,4,TRUE) -> 1080 | C22: =VLOOKUP(A22,A29:D33,1,TRUE) -> 48001 | D22: =A22-C22 -> 31999 | E22: =VLOOKUP(A22,A29:D33,3,TRUE) -> 0 | F22: =+D22*E22 -> 0 | G22: =SUM(B22,F22) -> 1080
A26: Lower and Middle income offset
A28: Wages Over | B28: Not to Exceed | C28: Tax Rate
A29: 1 | B29: 37000 | D29: 255
A30: =B29+1 -> 37001 | B30: 48000 | C30: 0.075 | D30: 255
A31: =B30+1 -> 48001 | B31: 90000 | C31: 0 | D31: 1080
A32: =B31+1 -> 90001 | B32: 126000 | C32: -0.03 | D32: 1080
A33: =B32+1 -> 126001 | C33: 0 | D33: 0
A38: Low Income offset
A40: Wages Over | B40: Not to Exceed | C40: Tax Rate
A41: 1 | B41: 37500 | D41: 700 | K41: =I41*52 -> 0
A42: =B41+1 -> 37501 | B42: 45000 | C42: -0.05 | D42: 700
A43: =B42+1 -> 45001 | B43: 66667 | C43: -0.015 | D43: 325
A48: Test low income
A50: income | B50: offset baseline | C50: Income lower range | D50: Income - Lower range | E50: offset reduced % | F50: offset reduced amount | G50: offset amount
A51: 80000 | B51: =VLOOKUP(A51,A41:D43,4,TRUE) -> 325 | C51: =VLOOKUP(A51,A41:D43,1,TRUE) -> 45001 | D51: =IF(A51>66667, 66667-45001, A51-C51) -> 21666 | E51: =VLOOKUP(A51,A41:D43,3,TRUE) -> -0.015 | F51: =+D51*E51 -> -324.99 | G51: =SUM(B51,F51) -> 0.01

Sheet User Problems (hidden)
A1: # | B1: Date | C1: Submitted By | D1: Sheet Name (if applicable) | E1: Problem | F1: Initial Review Assessment | G1: Review Result Date | H1: Review With User | I1: Review Result or Action to Take | J1: Sheets Affected | K1: Development Version # | L1: Type | M1: Estimate (hrs) | N1: Actual | O1: Status | P1: Date Unit Tested | Q1: Release Version #
A2: 1 | B2: 2017-04-06 | C2: Bill Slattery | E2: What we are trying to achieve is a stress test of servicing capacity at the higher of; 1. The selected interest rate + 2% or 2. 7% This change should only apply to Residential loans. | K2: ='Version Control'!C2 -> V6.4 Test | L2: Enhancement | O2: Completed | P2: 2017-04-10 | Q2: ='Version Control'!$C$9 -> v6.5
A3: 2 | B3: 2017-04-10 | C3: Trevor Smith | E3: The tax table in the Residential calculator is not the same as in the Consolidated Calculator. Looks like the Residential Calculator was not updated for the 2017/2018 change to the upper limit for the 32.5% rate (ie from $80000 to $87000). | F3: Change the tax table in the Residential Calculator in expectation you want it to match that in the Consolidated Calculator. | G3: 2017-04-10 | H3: Bill Slattery | I3: Change as recommended | K3: ='Version Control'!C3 -> V6.4 Test2 (v6.42) | L3: Bug | O3: Completed | P3: 2017-04-10 | Q3: ='Version Control'!$C$9 -> v6.5
A4: 3 | B4: 2017-04-24 | C4: Bill Slattery | D4: Serviceability Calc | E4: Add Serviceabilty Calculation Sheet as per Consolidated User Problem #131. | F4: Name as "Serviceability Calc" | K4: ='Version Control'!$C$4 -> V6.6 Test (v6.43) | L4: Enhancement | O4: Completed | P4: 2017-05-01 | Q4: ='Version Control'!$C$9 -> v6.5
A5: 4 | B5: 2017-04-24 | C5: Mario Lorenzi | E5: Add two macros: -Ctl/Shift/B to unhide the calculation sheets -Ctl/Shift/H to hide the calculation sheets | K5: ='Version Control'!$C$4 -> V6.6 Test (v6.43) | L5: Enhancement | O5: Completed | P5: 2017-05-01 | Q5: ='Version Control'!$C$9 -> v6.5
A6: 5 | B6: 2017-04-24 | C6: Mario Lorenzi | D6: Tables | E6: Change Company Tax Rate to 28.5% | F6: Set up a a new Company Tax Table on Tables sheet. Change Company Income Calculation (Cell K18) to reference the new Company Tax Table. | K6: ='Version Control'!$C$4 -> V6.6 Test (v6.43) | L6: Data Maintenance | O6: Completed | P6: 2017-05-01 | Q6: ='Version Control'!$C$9 -> v6.5
A7: 6 | B7: 2017-04-24 | C7: Mario Lorenzi | D7: Serviceability | E7: Add Interest Only Term cells for RedZed Loans 1 and 2 on Serviceability sheet. Change the Rate buffering calculation to use the net term (Total Term less Interest Only Term) | K7: ='Version Control'!$C$4 -> V6.6 Test (v6.43) | L7: Enhancement | O7: Completed | P7: 2017-05-01 | Q7: ='Version Control'!$C$9 -> v6.5
A8: 7 | B8: 2017-04-24 | C8: Mario Lorenzi | D8: Serviceability | E8: Add Source of Other Incomes cell for each of the Other Regular Monthly Income lines on the Serviceability sheets. | K8: ='Version Control'!$C$4 -> V6.6 Test (v6.43) | L8: Enhancement | O8: Completed | P8: 2017-05-01 | Q8: ='Version Control'!$C$9 -> v6.5
A9: 8 | B9: 2017-04-24 | C9: Mario Lorenzi | D9: Serviceability | E9: Change Company Income heading to display "Company Income (if applicable)" | K9: ='Version Control'!$C$4 -> V6.6 Test (v6.43) | L9: Enhancement | O9: Completed | P9: 2017-05-01 | Q9: ='Version Control'!$C$9 -> v6.5
A10: 9 | B10: 2017-04-24 | C10: Mario Lorenzi | D10: Serviceability | E10: Swap columns displaying Existing & New v Rental Income/Rental Income | K10: ='Version Control'!$C$4 -> V6.6 Test (v6.43) | L10: Enhancement | O10: Completed | P10: 2017-05-01 | Q10: ='Version Control'!$C$9 -> v6.5
A11: 10 | B11: 2017-04-24 | C11: Mario Lorenzi | D11: Tables | E11: Check Monthly Service Fee calculation - to assume entry of Residential Loans only - calculated at $15 per month | K11: ='Version Control'!$C$4 -> V6.6 Test (v6.43) | L11: Bug | O11: Completed | P11: 2017-05-01 | Q11: ='Version Control'!$C$9 -> v6.5
A12: 11 | B12: 2017-04-24 | C12: Mario Lorenzi | D12: Serviceability | E12: Company Income headings realigned to display above the detail line | K12: ='Version Control'!$C$4 -> V6.6 Test (v6.43) | L12: Enhancement | O12: Completed | P12: 2017-05-01 | Q12: ='Version Control'!$C$9 -> v6.5
A13: 12 | B13: 2017-04-24 | C13: Mario Lorenzi | D13: Serviceability | E13: Company Income section moved to display after Rental Income | K13: ='Version Control'!$C$4 -> V6.6 Test (v6.43) | L13: Enhancement | O13: Completed | P13: 2017-05-01 | Q13: ='Version Control'!$C$9 -> v6.5
A14: 13 | B14: 2017-04-24 | C14: Mario Lorenzi | D14: Serviceability | E14: Change Personal Income descriptors from "Guarantor 1, 2, 3, and 4" to "Applicant / Guarantor 1, 2, 3, and 4" | K14: ='Version Control'!$C$4 -> V6.6 Test (v6.43) | L14: Enhancement | O14: Completed | P14: 2017-05-01 | Q14: ='Version Control'!$C$9 -> v6.5
A15: 14 | B15: 2017-04-24 | C15: Mario Lorenzi | D15: Tables | E15: Tables Sheet - Highlight in yellow those data cells that can be changed to reflect legislation or company policy changes. | K15: ='Version Control'!$C$4 -> V6.6 Test (v6.43) | L15: Enhancement | O15: Completed | P15: 2017-05-01 | Q15: ='Version Control'!$C$9 -> v6.5
A16: 15 | B16: 2017-06-08 | C16: Mario Lorenzi | D16: Tax Calc | E16: Tax Calc Sheet - delete Other Income Cells A10 to I13 | K16: ='Version Control'!$C$5 -> V6.8 Test (v6.44) | L16: Enhancement | O16: Completed | P16: 2017-06-15 | Q16: ='Version Control'!$C$9 -> v6.5
A17: 16 | B17: 2017-06-08 | C17: Mario Lorenzi | D17: Tax Calc | E17: Tax Calc Sheet - delete "Correct Formula For Serviceability - Don’t Think Arm Can Do This" Cells L1 to R25 | K17: ='Version Control'!$C$5 -> V6.8 Test (v6.44) | L17: Enhancement | O17: Completed | P17: 2017-06-15 | Q17: ='Version Control'!$C$9 -> v6.5
A18: 17 | B18: 2017-06-08 | C18: Mario Lorenzi | D18: Serviceability | E18: Fix formatting of Financier Cells for Existing Loans | K18: ='Version Control'!$C$5 -> V6.8 Test (v6.44) | L18: Bug | O18: Completed | P18: 2017-06-15 | Q18: ='Version Control'!$C$9 -> v6.5
A19: 18 | B19: 2017-06-19 | C19: Trevor Smith | D19: User Problems Version Control | E19: Add Sheets for User Problems and Version Control. | K19: ='Version Control'!$C$6 -> V6.9 (v6.45) | L19: Enhancement | O19: Completed | P19: 2017-06-20 | Q19: ='Version Control'!$C$9 -> v6.5
A20: 19 | B20: 2017-06-19 | C20: Angelo Klidomitis | D20: Serviceability | E20: Change Look & Feel as per 4.0 ServiceabilityCalculator.xlsx | K20: ='Version Control'!$C$6 -> V6.9 (v6.45) | L20: Enhancement | O20: Completed | P20: 2017-06-21 | Q20: ='Version Control'!$C$9 -> v6.5
A21: 20 | B21: 2017-05-22 | C21: Mario Lorenzi & Bill Slattery | D21: Serviceability | E21: Increase readability of printed version of the sheet | K21: ='Version Control'!C7 -> V6.10 (v6.46) | L21: Enhancement | O21: Completed | P21: 2017-06-26 | Q21: ='Version Control'!$C$9 -> v6.5
A22: 21 | B22: 2017-06-29 | C22: Mario Lorenzi | D22: Serviceability | E22: 1) Borders missing for Enter Source of Income, Rental Income, Maintenance, & Other Fixed Monthly Repayments. 2) Enter a zero in each dollar entry cell so the user is aware it is available for entry. | K22: ='Version Control'!C8 -> v6.47 Pending | L22: Enhancement & Bug | O22: Completed | P22: 2017-06-29 | Q22: ='Version Control'!$C$9 -> v6.5
A23: 22 | B23: 2018-11-20 | C23: Lorraine Taylor | D23: Servicebility | E23: IF more then three adult in one household please display the mssage | K23: V7.3 | O23: Completed | P23: 2018-11-20 | Q23: V7.3
A24: 23
A25: 24
A26: 25
A27: 26
A28: 27
A29: 28
A30: 29
A31: 30
A32: 31
A33: 32
A34: 33

Sheet Version Control (hidden)
A1: Name | B1: Date | C1: Version # | D1: Development Version File Name | E1: Changes | F1: Released Version | H1: Current Version | I1: =VLOOKUP($J$1,B2:$I$3983,8,FALSE) -> V10.16 220616 | J1: =MAX(B2:B3983) -> 2022-06-16
A2: Trevor Smith | B2: 2017-04-10 | C2: V6.4 Test | D2: K:\IT\Change_Work Requests\Work Request\WR004 - Commercial Calculator\02 Residential Calculator\2017 05 Changes\4. REDZED-Serviceability-170410-V6.4 Test2.xls | E2: User Problem 1 | G2: =IFERROR(VLOOKUP(MONTH(B2),'Day and Months Table'!A:B,2,FALSE)&VLOOKUP(DAY(B2),'Day and Months Table'!A:B,2,FALSE),"N/A") -> 0410 | H2: =RIGHT(YEAR(B2),2)&G2 -> 170410 | I2: =CONCATENATE(C2," ",H2) -> V6.4 Test 170410
A3: Trevor Smith | B3: 2017-04-10 | C3: V6.4 Test2 (v6.42) | D3: K:\IT\Change_Work Requests\Work Request\WR004 - Commercial Calculator\02 Residential Calculator\2017 05 Changes\4. REDZED-Serviceability-170410-V6.4 Test.xls | E3: User Problem 2 | G3: =IFERROR(VLOOKUP(MONTH(B3),'Day and Months Table'!A:B,2,FALSE)&VLOOKUP(DAY(B3),'Day and Months Table'!A:B,2,FALSE),"N/A") -> 0410 | H3: =RIGHT(YEAR(B3),2)&G3 -> 170410 | I3: =CONCATENATE(C3," ",H3) -> V6.4 Test2 (v6.42) 170410
A4: Trevor Smith | B4: 2017-05-01 | C4: V6.6 Test (v6.43) | D4: K:\IT\Change_Work Requests\Work Request\WR004 - Commercial Calculator\02 Residential Calculator\2017 05 Changes\4. REDZED-Serviceability-170410-V6.6 Test.xls | E4: User Problems 3 - 14 inclusive | G4: =IFERROR(VLOOKUP(MONTH(B4),'Day and Months Table'!A:B,2,FALSE)&VLOOKUP(DAY(B4),'Day and Months Table'!A:B,2,FALSE),"N/A") -> 0501 | H4: 170501 | I4: V6.6 Test (v6.43) 170501
A5: Trevor Smith | B5: 2017-05-15 | C5: V6.8 Test (v6.44) | D5: K:\IT\Change_Work Requests\Work Request\WR004 - Commercial Calculator\02 Residential Calculator\2017 05 Changes\4. REDZED-Serviceability-170410-V6.8 Test.xls | E5: User Problems 15 - 17 inclusive | G5: =IFERROR(VLOOKUP(MONTH(B5),'Day and Months Table'!A:B,2,FALSE)&VLOOKUP(DAY(B5),'Day and Months Table'!A:B,2,FALSE),"N/A") -> 0515 | H5: 170515 | I5: V6.8 Test (v6.44) 170515
A6: Trevor Smith | B6: 2017-06-21 | C6: V6.9 (v6.45) | D6: K:\IT\Change_Work Requests\Work Request\WR004 - Commercial Calculator\02 Residential Calculator\2017 05 Changes\4. REDZED-Serviceability-170410-V6.9.xls | E6: User Problem 18 - 19 | F6: Issued to Mario Lorenzi for testing 20 June 2017 | G6: =IFERROR(VLOOKUP(MONTH(B6),'Day and Months Table'!A:B,2,FALSE)&VLOOKUP(DAY(B6),'Day and Months Table'!A:B,2,FALSE),"N/A") -> 0621 | H6: 170621 | I6: V6.9 (v6.45) 170621
A7: Trevor Smith | B7: 2017-06-27 | C7: V6.10 (v6.46) | D7: K:\IT\Change_Work Requests\Work Request\WR004 - Commercial Calculator\02 Residential Calculator\2017 05 Changes\4. REDZED-Serviceability-170410-V6.10.xls A changed versioning system for both this Residential Calculator and the Commercial Calculator was agreed with Tina Georgiadis 26 June 2015 (after receiving feedback from Angel Klidomitis). The last version of the Residential Calculator was named "4. REDZED-Serviceability-170410-V6.4.xls". The naming convention is being changed to "REDZED-Serviceability Type (ie Residential or Commercial) Version Number.xls". Each release will have a date added as a suffix in the format yymmdd. Because the upcoming release does not contain major ammendments it will be named "REDZED-Serviceability Residential v6.5 yymmdd.xls". This being the case, the naming of the development files should have been as per the bracketed values in the Version # cells (eg 4. REDZED-Serviceability-170410-V6.4 Test.xls should have been 4. REDZED-Serviceability-170410-V6.41.xls) To move to the new numbering system this version was copied and renamed and saved to the new development and release folder structure 26 June 2017. The new location and file name is K:\Credit\Servicing Calculator - Residential\Development - Residential\REDZED-Serviceability Residential V0.646.xlsm. The released version number for this series of amendments will be v6.5 with a date added in the format yymmdd. | E7: A renamed version + User Problem 20 | G7: =IFERROR(VLOOKUP(MONTH(B7),'Day and Months Table'!A:B,2,FALSE)&VLOOKUP(DAY(B7),'Day and Months Table'!A:B,2,FALSE),"N/A") -> 0627 | H7: 170627 | I7: V6.10 (v6.46) 170627
A8: Trevor Smith | B8: 2017-06-29 | C8: v6.47 Pending | D8: K:\Credit\Servicing Calculator - Residential\Development - Residential\REDZED-Serviceability Residential V0.647.xlsm | E8: User Problem 21 | G8: =IFERROR(VLOOKUP(MONTH(B8),'Day and Months Table'!A:B,2,FALSE)&VLOOKUP(DAY(B8),'Day and Months Table'!A:B,2,FALSE),"N/A") -> 0629 | H8: 170629 | I8: v6.47 Pending 170629
A9: Trevor Smith | B9: 2017-06-30 | C9: v6.5 | F9: K:\Credit\Servicing Calculator - Residential\Current Released Version - Residential\REDZED-Serviceability Residential V6.5.xlsm | G9: =IFERROR(VLOOKUP(MONTH(B9),'Day and Months Table'!A:B,2,FALSE)&VLOOKUP(DAY(B9),'Day and Months Table'!A:B,2,FALSE),"N/A") -> 0630 | H9: 170630 | I9: v6.5 170630
A10: Mayank Badhen | B10: 2018-06-25 | C10: V7.1A | D10: Updated the living expense | G10: =IFERROR(VLOOKUP(MONTH(B10),'Day and Months Table'!A:B,2,FALSE)&VLOOKUP(DAY(B10),'Day and Months Table'!A:B,2,FALSE),"N/A") -> 0625 | H10: 180625 | I10: V7.1A 180625
A11: Mayank Badhen | B11: 2018-07-25 | C11: V7.2 | D11: updated living expense for Company selecting household is mandatory updated the tax scale compnay income is always attached to household 1 | G11: =IFERROR(VLOOKUP(MONTH(B11),'Day and Months Table'!A:B,2,FALSE)&VLOOKUP(DAY(B11),'Day and Months Table'!A:B,2,FALSE),"N/A") -> 0725 | H11: 180725 | I11: V7.2 180725
A12: Mayank Badhen | B12: 2018-12-11 | C12: V7.2.1 | D12: IF more then three adult in one household please display the mssage | G12: =IFERROR(VLOOKUP(MONTH(B12),'Day and Months Table'!A:B,2,FALSE)&VLOOKUP(DAY(B12),'Day and Months Table'!A:B,2,FALSE),"N/A") -> 1211 | H12: 181211 | I12: V7.2.1 181211
A13: Mayank Badhen | B13: 2019-06-26 | C13: V7.3 | D13: credit card obligations | G13: =IFERROR(VLOOKUP(MONTH(B13),'Day and Months Table'!A:B,2,FALSE)&VLOOKUP(DAY(B13),'Day and Months Table'!A:B,2,FALSE),"N/A") -> 0626 | H13: 190626 | I13: V7.3 190626
A14: Mayank Badhen | B14: 2019-12-02 | C14: V7.4 | D14: IO term fixed | G14: =IFERROR(VLOOKUP(MONTH(B14),'Day and Months Table'!A:B,2,FALSE)&VLOOKUP(DAY(B14),'Day and Months Table'!A:B,2,FALSE),"N/A") -> 1202 | H14: 191202 | I14: V7.4 191202
G15: =IFERROR(VLOOKUP(MONTH(B15),'Day and Months Table'!A:B,2,FALSE)&VLOOKUP(DAY(B15),'Day and Months Table'!A:B,2,FALSE),"N/A") -> N/A | H15: 00N/A | I15: 00N/A
G16: =IFERROR(VLOOKUP(MONTH(B16),'Day and Months Table'!A:B,2,FALSE)&VLOOKUP(DAY(B16),'Day and Months Table'!A:B,2,FALSE),"N/A") -> N/A | H16: 00N/A | I16: 00N/A
G17: =IFERROR(VLOOKUP(MONTH(B17),'Day and Months Table'!A:B,2,FALSE)&VLOOKUP(DAY(B17),'Day and Months Table'!A:B,2,FALSE),"N/A") -> N/A | H17: 00N/A | I17: 00N/A
A18: John Jiang | B18: 2020-07-30 | C18: V10.0 | D18: 1. Residential calculator a. Introduction of a traffic light Pass, Refer to RZ or Fail notification. Pass >1.10, Refer >1.05 – 1.10, Fail below 1.05. The introduction of the Refer category is designed to encourage brokers to Refer deals where we don’t quite meet servicing requirements, but in discussion with RZ we may jointly find a way forward. Potentially these deals may be currently being sent to other lenders who have lower servicing ratio benchmarks). b. Creating a blank template. c. Removal of the tax calculation for company income to fall in line with the policy which states that we assess on NPBT. Other general changes including ensuring; 1. Living expenses were consistent across all selections (there were some errors & inconsistencies) 2. Tax scales were checked and amended for consistency. | G18: =IFERROR(VLOOKUP(MONTH(B18),'Day and Months Table'!A:B,2,FALSE)&VLOOKUP(DAY(B18),'Day and Months Table'!A:B,2,FALSE),"N/A") -> 0730 | H18: 200730 | I18: V10.0 200730
A19: John Jiang | B19: 2020-08-13 | C19: V10.0 Residential | D19: Changed footer | G19: =IFERROR(VLOOKUP(MONTH(B19),'Day and Months Table'!A:B,2,FALSE)&VLOOKUP(DAY(B19),'Day and Months Table'!A:B,2,FALSE),"N/A") -> 0813 | H19: 200813 | I19: V10.0 Residential 200813
A20: John Jiang | B20: 2020-11-16 | C20: V10.1 | D20: changed tax bracket to new 2020 tax regulation | G20: =IFERROR(VLOOKUP(MONTH(B20),'Day and Months Table'!A:B,2,FALSE)&VLOOKUP(DAY(B20),'Day and Months Table'!A:B,2,FALSE),"N/A") -> 1116 | H20: 201116 | I20: V10.1 201116
A21: John Jiang | B21: 2020-12-17 | C21: V10.11 | D21: change interest floor rate from 7% to 6% | G21: =IFERROR(VLOOKUP(MONTH(B21),'Day and Months Table'!A:B,2,FALSE)&VLOOKUP(DAY(B21),'Day and Months Table'!A:B,2,FALSE),"N/A") -> 1217 | H21: 201217 | I21: V10.11 201217
A22: John Jiang | B22: 2021-01-15 | C22: V10.12 | D22: Update HEM table according to Sept 2020 quarter data from HEM | G22: =IFERROR(VLOOKUP(MONTH(B22),'Day and Months Table'!A:B,2,FALSE)&VLOOKUP(DAY(B22),'Day and Months Table'!A:B,2,FALSE),"N/A") -> 0115 | H22: 210115 | I22: V10.12 210115
A23: John Jiang | B23: 2021-09-15 | C23: V10.13 | D23: Update HEM table according to 2021 June quarter HEM review data | G23: =IFERROR(VLOOKUP(MONTH(B23),'Day and Months Table'!A:B,2,FALSE)&VLOOKUP(DAY(B23),'Day and Months Table'!A:B,2,FALSE),"N/A") -> 0915 | H23: =RIGHT(YEAR(B23),2)&G23 -> 210915 | I23: =CONCATENATE(C23," ",H23) -> V10.13 210915
A24: John Jiang | B24: 2021-10-27 | C24: V10.14 | D24: Add a footnote in resi calculator only. | E24: For Company Borrowers DSR must be >1.10 | G24: =IFERROR(VLOOKUP(MONTH(B24),'Day and Months Table'!A:B,2,FALSE)&VLOOKUP(DAY(B24),'Day and Months Table'!A:B,2,FALSE),"N/A") -> 1027 | H24: =RIGHT(YEAR(B24),2)&G24 -> 211027 | I24: =CONCATENATE(C24," ",H24) -> V10.14 211027
A25: Shun | B25: 2022-04-06 | C25: V10.15 | D25: Add DTI Calculation | G25: =IFERROR(VLOOKUP(MONTH(B25),'Day and Months Table'!A:B,2,FALSE)&VLOOKUP(DAY(B25),'Day and Months Table'!A:B,2,FALSE),"N/A") -> 0406 | H25: 220406 | I25: V10.15 220406
A26: Shun | B26: 2022-06-16 | C26: V10.16 | D26: Update Buffer and Floor Rates && Add the Total Credit Card Limit values to the Total Debt value && Update HEM Rates Q1 2022 | G26: =IFERROR(VLOOKUP(MONTH(B26),'Day and Months Table'!A:B,2,FALSE)&VLOOKUP(DAY(B26),'Day and Months Table'!A:B,2,FALSE),"N/A") -> 0616 | H26: 220616 | I26: V10.16 220616
G27: =IFERROR(VLOOKUP(MONTH(B27),'Day and Months Table'!A:B,2,FALSE)&VLOOKUP(DAY(B27),'Day and Months Table'!A:B,2,FALSE),"N/A") -> N/A | H27: 00N/A | I27: 00N/A
G28: =IFERROR(VLOOKUP(MONTH(B28),'Day and Months Table'!A:B,2,FALSE)&VLOOKUP(DAY(B28),'Day and Months Table'!A:B,2,FALSE),"N/A") -> N/A | H28: 00N/A | I28: 00N/A
G29: =IFERROR(VLOOKUP(MONTH(B29),'Day and Months Table'!A:B,2,FALSE)&VLOOKUP(DAY(B29),'Day and Months Table'!A:B,2,FALSE),"N/A") -> N/A | H29: 00N/A | I29: 00N/A
G30: =IFERROR(VLOOKUP(MONTH(B30),'Day and Months Table'!A:B,2,FALSE)&VLOOKUP(DAY(B30),'Day and Months Table'!A:B,2,FALSE),"N/A") -> N/A | H30: 00N/A | I30: 00N/A
G31: =IFERROR(VLOOKUP(MONTH(B31),'Day and Months Table'!A:B,2,FALSE)&VLOOKUP(DAY(B31),'Day and Months Table'!A:B,2,FALSE),"N/A") -> N/A | H31: 00N/A | I31: 00N/A
G32: =IFERROR(VLOOKUP(MONTH(B32),'Day and Months Table'!A:B,2,FALSE)&VLOOKUP(DAY(B32),'Day and Months Table'!A:B,2,FALSE),"N/A") -> N/A | H32: 00N/A | I32: 00N/A

Sheet Day and Months Table (hidden)
A1: 1 | B1: 01
A2: 2 | B2: 02
A3: 3 | B3: 03
A4: 4 | B4: 04
A5: 5 | B5: 05
A6: 6 | B6: 06
A7: 7 | B7: 07
A8: 8 | B8: 08
A9: 9 | B9: 09
A10: 10 | B10: 10
A11: 11 | B11: 11
A12: 12 | B12: 12
A13: 13 | B13: 13
A14: 14 | B14: 14
A15: 15 | B15: 15
A16: 16 | B16: 16
A17: 17 | B17: 17
A18: 18 | B18: 18
A19: 19 | B19: 19
A20: 20 | B20: 20
A21: 21 | B21: 21
A22: 22 | B22: 22
A23: 23 | B23: 23
A24: 24 | B24: 24
A25: 25 | B25: 25
A26: 26 | B26: 26
A27: 27 | B27: 27
A28: 28 | B28: 28
A29: 29 | B29: 29
A30: 30 | B30: 30
A31: 31 | B31: 31
